fUSD/lending_fUSD_20240828
["ID","MTS","AMOUNT","RATE_DAILY","PERIOD"]
[336447507,1724830258341,-480.24,0.00010999,2]
[336447508,1724830258350,-500.0,0.00010999,2]
[336447509,1724830258360,-500.0,0.00010999,2]
[336447510,1724830258370,-517.40695459,0.00010999,2]
[336447511,1724830258379,-606.23275769,0.00010999,2]
[336447512,1724830258388,-500.0,0.00010999,2]
[336447513,1724830258397,-500.0,0.00010999,2]
[336447514,1724830258406,-500.0,0.00010999,2]
[336447515,1724830258415,-194.24,0.00010999,2]
[336447516,1724830258424,-500.0,0.00010999,2]
[336447517,1724830258434,-500.0,0.00010999,2]
[336447518,1724830258444,-500.0,0.00010999,2]
[336447519,1724830258453,-500.0,0.00010999,2]
[336447520,1724830258463,-500.0,0.00010999,2]
[336447521,1724830258472,-636.45,0.00010999,2]
[336447522,1724830258482,-500.0,0.00010999,2]
[336447523,1724830258491,-500.0,0.00010999,2]
[336447524,1724830258501,-500.0,0.00010999,2]
[336447525,1724830258510,-500.0,0.00010999,2]
[336447526,1724830258519,-498.93,0.00010999,2]
[336447527,1724830258529,-500.0,0.00010999,2]
[336447528,1724830258538,-500.0,0.00010999,2]
[336447529,1724830258547,-500.0,0.00010999,2]
[336447530,1724830258557,-500.0,0.00010999,2]
[336447531,1724830258566,-500.0,0.00010999,2]
[336447532,1724830258575,-500.0,0.00010999,2]
[336447533,1724830258586,-500.0,0.00010999,2]
[336447534,1724830258595,-500.0,0.00010999,2]
[336447535,1724830258604,-500.0,0.00010999,2]
[336447536,1724830258613,-553.39,0.00010999,2]
[336447537,1724830258622,-621.85,0.00010999,2]
[336447538,1724830258631,-500.0,0.00010999,2]
[336447539,1724830258640,-500.0,0.00010999,2]
[336447540,1724830258649,-500.7047699,0.00010999,2]
[336447541,1724830258658,-500.0,0.00010999,2]
[336447542,1724830258668,-517.4,0.00010999,2]
[336447543,1724830258677,-500.0,0.00010999,2]
[336447544,1724830258687,-500.0,0.00010999,2]
[336447545,1724830258697,-627.05,0.00010999,2]
[336447546,1724830258706,-500.0,0.00010999,2]
[336447547,1724830258716,-500.0,0.00010999,2]
[336447548,1724830258725,-500.0,0.00010999,2]
[336447549,1724830258735,-500.0,0.00010999,2]
[336447550,1724830258745,-500.0,0.00010999,2]
[336447551,1724830258754,-500.0,0.00010999,2]
[336447552,1724830258764,-500.0,0.00010999,2]
[336447553,1724830258774,-500.0,0.00010999,2]
[336447554,1724830258783,-500.0,0.00010999,2]
[336447555,1724830258793,-500.0,0.00010999,2]
[336447556,1724830258802,-523.63926303,0.00010999,2]
[336447557,1724830258812,-500.0,0.00010999,2]
[336447558,1724830258821,-500.0,0.00010999,2]
[336447559,1724830258830,-500.0,0.00010999,2]
[336447560,1724830258840,-500.0,0.00010999,2]
[336447561,1724830258850,-500.0,0.00010999,2]
[336447562,1724830258859,-329.16307845,0.00010999,2]
[336447563,1724830258869,-500.0,0.00010999,2]
[336447564,1724830258878,-495.58603738,0.00010999,2]
[336447565,1724830258888,-579.97,0.00010999,2]
[336447566,1724830258897,-579.97,0.00010999,2]
[336447567,1724830258906,-579.97,0.00010999,2]
[336447568,1724830258915,-579.97,0.00010999,2]
[336447569,1724830258925,-579.97,0.00010999,2]
[336447570,1724830258934,-579.97,0.00010999,2]
[336447571,1724830258944,-579.97,0.00010999,2]
[336447572,1724830258953,-579.97,0.00010999,2]
[336447573,1724830258962,-579.97,0.00010999,2]
[336447574,1724830258972,-579.97,0.00010999,2]
[336447575,1724830258982,-579.97,0.00010999,2]
[336447576,1724830258991,-579.97,0.00010999,2]
[336447577,1724830259000,-579.97,0.00010999,2]
[336447578,1724830259010,-579.97,0.00010999,2]
[336447579,1724830259020,-579.97,0.00010999,2]
[336447580,1724830259029,-495.06118439,0.00010999,2]
[336447581,1724830259039,-579.97,0.00010999,2]
[336447582,1724830259048,-579.97,0.00010999,2]
[336447583,1724830259058,-579.97,0.00010999,2]
[336447584,1724830259071,-579.97,0.00010999,2]
[336447585,1724830259082,-500.0,0.00010999,2]
[336447586,1724830259091,-580.03,0.00010999,2]
[336447587,1724830259101,-500.0,0.00010999,2]
[336447588,1724830259110,-473.45,0.00010999,2]
[336447589,1724830259120,-467.83198344,0.00010999,2]
[336447590,1724830259130,-297.48711185,0.00010999,2]
[336447591,1724830259140,-500.0,0.00010999,2]
[336447592,1724830259150,-500.0,0.00010999,2]
[336447593,1724830259160,-500.0,0.00010999,2]
[336447594,1724830259169,-500.0,0.00010999,2]
[336447595,1724830259292,-500.0,0.00010999,2]
[336447596,1724830259302,-500.0,0.00010999,2]
[336447597,1724830259312,-500.0,0.00010999,2]
[336447598,1724830259321,-500.0,0.00010999,2]
[336447599,1724830259332,-500.0,0.00010999,2]
[336447600,1724830259341,-500.0,0.00010999,2]
[336447601,1724830259350,-500.0,0.00010999,2]
[336447602,1724830259360,-500.0,0.00010999,2]
[336447603,1724830259370,-500.0,0.00010999,2]
[336447604,1724830259379,-500.0,0.00010999,2]
[336447605,1724830259388,-500.0,0.00010999,2]
[336447606,1724830259398,-500.0,0.00010999,2]
[336447607,1724830259407,-530.32835119,0.00010999,2]
[336447608,1724830259416,-575.18,0.00010999,2]
[336447609,1724830259425,-575.18,0.00010999,2]
[336447610,1724830259435,-575.18,0.00010999,2]
[336447611,1724830259444,-575.18,0.00010999,2]
[336447612,1724830259453,-500.0,0.00010999,2]
[336447613,1724830259463,-575.18,0.00010999,2]
[336447614,1724830259473,-575.18,0.00010999,2]
[336447615,1724830259483,-500.0,0.00010999,2]
[336447616,1724830259493,-575.18,0.00010999,2]
[336447617,1724830259502,-500.0,0.00010999,2]
[336447618,1724830259512,-575.18,0.00010999,2]
[336447619,1724830259521,-500.0,0.00010999,2]
[336447620,1724830259531,-575.18,0.00010999,2]
[336447621,1724830259540,-575.18,0.00010999,2]
[336447622,1724830259550,-575.18,0.00010999,2]
[336447623,1724830259559,-575.18,0.00010999,2]
[336447624,1724830259569,-575.18,0.00010999,2]
[336447625,1724830259578,-575.18,0.00010999,2]
[336447626,1724830259589,-575.18,0.00010999,2]
[336447627,1724830259599,-575.18,0.00010999,2]
[336447628,1724830259608,-3062.04,0.00010999,2]
[336447629,1724830259618,-575.18,0.00010999,2]
[336447630,1724830259627,-3062.04,0.00010999,2]
[336447631,1724830259637,-547.72641837,0.00010999,2]
[336447632,1724830259647,-575.18,0.00010999,2]
[336447633,1724830259656,-3062.04,0.00010999,2]
[336447634,1724830259666,-575.3,0.00010999,2]
[336447635,1724830259675,-3062.04,0.00010999,2]
[336447636,1724830259685,-3062.04,0.00010999,2]
[336447637,1724830259694,-804.19,0.00010999,2]
[336447638,1724830259704,-804.19,0.00010999,2]
[336447639,1724830259713,-2897.15960932,0.00010999,2]
[336447640,1724830259914,-164.88039068,0.00010999,2]
[336447641,1724830259924,-804.19,0.00010999,2]
[336447642,1724830259934,-3062.04,0.00010999,2]
[336447643,1724830259944,-804.19,0.00010999,2]
[336447644,1724830259953,-3062.04,0.00010999,2]
[336447645,1724830259963,-804.19,0.00010999,2]
[336447646,1724830259972,-804.19,0.00010999,2]
[336447647,1724830259982,-3062.04,0.00010999,2]
[336447648,1724830259991,-804.19,0.00010999,2]
[336447649,1724830260001,-524.09320299,0.00010999,2]
[336447650,1724830260011,-3062.04,0.00010999,2]
[336447651,1724830260020,-311.21992283,0.00010999,2]
[336447652,1724830260029,-804.19,0.00010999,2]
[336447653,1724830260038,-3062.04,0.00010999,2]
[336447654,1724830260048,-1560.72899268,0.00010999,2]
[336447655,1724830260057,-804.19,0.00010999,2]
[336447656,1724830260068,-3062.04,0.00010999,2]
[336447657,1724830260079,-804.19,0.00010999,2]
[336447658,1724830260098,-3062.04,0.00010999,2]
[336447659,1724830260107,-804.19,0.00010999,2]
[336447660,1724830260118,-3062.04,0.00010999,2]
[336447661,1724830260127,-804.19,0.00010999,2]
[336447662,1724830260136,-3062.04,0.00010999,2]
[336447663,1724830260148,-804.19,0.00010999,2]
[336447664,1724830260158,-3062.04,0.00010999,2]
[336447665,1724830260167,-3062.04,0.00010999,2]
[336447666,1724830260176,-3062.04,0.00010999,2]
[336447667,1724830260187,-804.19,0.00010999,2]
[336447668,1724830260196,-3062.04,0.00010999,2]
[336447669,1724830260208,-804.19,0.00010999,2]
[336447670,1724830260223,-804.19,0.00010999,2]
[336447671,1724830260238,-3062.07,0.00010999,2]
[336447672,1724830260251,-804.19,0.00010999,2]
[336447673,1724830260266,-804.19,0.00010999,2]
[336447674,1724830260282,-804.24,0.00010999,2]
[336447675,1724830260297,-500.0,0.00010999,2]
[336447676,1724830260313,-500.0,0.00010999,2]
[336447677,1724830260327,-500.0,0.00010999,2]
[336447678,1724830260344,-500.0,0.00010999,2]
[336447679,1724830260358,-500.0,0.00010999,2]
[336447680,1724830260372,-171.95201946,0.00010999,2]
[336447681,1724830260386,-500.0,0.00010999,2]
[336447682,1724830260399,-500.0,0.00010999,2]
[336447683,1724830260412,-500.0,0.00010999,2]
[336447684,1724830260425,-500.0,0.00010999,2]
[336447685,1724830260440,-500.0,0.00010999,2]
[336447686,1724830260454,-500.0,0.00010999,2]
[336447687,1724830260469,-500.0,0.00010999,2]
[336447688,1724830260483,-236.68,0.00010999,2]
[336447689,1724830260493,-500.0,0.00010999,2]
[336447690,1724830260505,-500.0,0.00010999,2]
[336447691,1724830260518,-500.0,0.00010999,2]
[336447692,1724830260532,-500.0,0.00010999,2]
[336447693,1724830260543,-500.0,0.00010999,2]
[336447694,1724830260557,-500.0,0.00010999,2]
[336447695,1724830260571,-500.0,0.00010999,2]
[336447696,1724830260587,-500.0,0.00010999,2]
[336447697,1724830260599,-500.0,0.00010999,2]
[336447698,1724830260611,-500.0,0.00010999,2]
[336447699,1724830260624,-375.64,0.00010999,2]
[336447700,1724830260636,-500.0,0.00010999,2]
[336447701,1724830260649,-500.0,0.00010999,2]
[336447702,1724830260660,-500.0,0.00010999,2]
[336447703,1724830260673,-229.32,0.00010999,2]
[336447704,1724830260685,-1297.44,0.00010999,2]
[336447705,1724830260697,-1297.44,0.00010999,2]
[336447706,1724830260709,-1297.44,0.00010999,2]
[336447707,1724830260721,-1297.44,0.00010999,2]
[336447708,1724830260733,-500.0,0.00010999,2]
[336447709,1724830260745,-1297.44,0.00010999,2]
[336447710,1724830260757,-500.0,0.00010999,2]
[336447711,1724830260769,-1297.44,0.00010999,2]
[336447712,1724830260781,-508.78379957,0.00010999,2]
[336447713,1724830260792,-500.0,0.00010999,2]
[336447714,1724830260804,-1297.44,0.00010999,2]
[336447715,1724830260815,-500.0,0.00010999,2]
[336447716,1724830260827,-1297.44,0.00010999,2]
[336447717,1724830260842,-500.0,0.00010999,2]
[336447718,1724830260854,-500.0,0.00010999,2]
[336447719,1724830260866,-1297.44,0.00010999,2]
[336447720,1724830260878,-500.0,0.00010999,2]
[336447721,1724830260890,-1297.44,0.00010999,2]
[336447722,1724830260903,-1297.44,0.00010999,2]
[336447723,1724830260915,-1297.44,0.00010999,2]
[336447724,1724830260927,-500.0,0.00010999,2]
[336447725,1724830260939,-1297.44,0.00010999,2]
[336447726,1724830260951,-1297.44,0.00010999,2]
[336447727,1724830260963,-500.0,0.00010999,2]
[336447728,1724830260975,-1297.44,0.00010999,2]
[336447729,1724830260988,-500.0,0.00010999,2]
[336447730,1724830261000,-1297.44,0.00010999,2]
[336447731,1724830261012,-500.0,0.00010999,2]
[336447732,1724830261021,-1297.44,0.00010999,2]
[336447733,1724830261031,-500.0,0.00010999,2]
[336447734,1724830261040,-1297.44,0.00010999,2]
[336447735,1724830261050,-500.0,0.00010999,2]
[336447736,1724830261061,-1297.64393201,0.00010999,2]
[336447737,1724830261073,-500.0,0.00010999,2]
[336447738,1724830261082,-500.0,0.00010999,2]
[336447739,1724830261092,-500.0,0.00010999,2]
[336447740,1724830261101,-442.99786609,0.00010999,2]
[336447741,1724830261119,-500.0,0.00010958,2]
[336447742,1724830261128,-451.00213391,0.00010999,2]
[336447743,1724830261138,-93.08164257,0.00011,2]
[336447744,1724830261151,-370365.4666593,0.00011,2]
[336447745,1724830261162,-263.07910324,0.00011,2]
[336447746,1724830262056,-590.0,0.00011,2]
[336447747,1724830262074,-1257.99548884,0.00011,2]
[336447748,1724830262088,-12756.0,0.00011,2]
[336447749,1724830262103,-4986.28499988,0.00011,2]
[336447750,1724830262188,-500.0,0.00010998,2]
[336447751,1724830262198,-207.6719252,0.00010999,2]
[336447752,1724830262209,-292.3280748,0.00010999,2]
[336447753,1724830262218,-237.13,0.00010999,2]
[336447754,1724830262227,-124483.79948733,0.00011,2]
[336447755,1724830262239,-174057.3795909,0.00011,2]
[336447756,1724830262251,-88159.82420127,0.00011,2]
[336447757,1724830262263,-74231.45971563,0.00011,2]
[336447758,1724830262274,-44851.69624591,0.00011,2]
[336447759,1724830262285,-40637.43076967,0.00011,2]
[336447760,1724830262296,-11537.57862452,0.00011,2]
[336447761,1724830262307,-284.24529389,0.00011,2]
[336447762,1724830262318,-14674.0,0.00011,2]
[336447764,1724830326238,500.0,9.846e-05,2]
[336447767,1724830376402,1000.0,0.00015,120]
[336447768,1724830396026,1000.0,0.00012,30]
[336447769,1724830402357,173.22,9.536e-05,2]
[336447771,1724830424512,1000.0,0.0001,60]
[336447773,1724830477217,250.0,9.893e-05,2]
[336447775,1724830549765,200.0,9.844e-05,2]
[336447776,1724830562812,236.16,9.815e-05,2]
[336447777,1724830618176,211.48,9.773e-05,2]
[336447779,1724830701867,661.84,8.219e-05,2]
[336447780,1724830798981,23900.0,9.719e-05,2]
[336447781,1724830898501,10000.0,9.719e-05,2]
[336447790,1724831043985,1000.0,9.757e-05,2]
[336447797,1724831080006,345.31935886,9.899e-05,2]
[336447799,1724831129853,1166.46,9.865e-05,2]
[336447804,1724831154945,211.07,9.897e-05,2]
[336447805,1724831186553,211.48,9.866e-05,2]
[336447807,1724831223979,403.04726312,9.841e-05,2]
[336447834,1724831293137,3903.96,9.654e-05,2]
[336447835,1724831294825,189.66,9.654e-05,2]
[336447836,1724831300415,652.1,8.219e-05,2]
[336447837,1724831300824,1636.36345285,9.841e-05,2]
[336447838,1724831327438,155.0,9.91e-05,2]
[336447839,1724831330829,1636.36345285,9.841e-05,2]
[336447841,1724831372592,154.91,9.538e-05,2]
[336447842,1724831372789,154.91,9.543e-05,2]
[336447843,1724831373015,154.91,9.549e-05,2]
[336447844,1724831373226,154.91,9.554e-05,2]
[336447845,1724831373636,154.91,9.559e-05,2]
[336447846,1724831373875,154.91,9.565e-05,2]
[336447847,1724831374116,154.91,9.57e-05,2]
[336447849,1724831374534,154.91,9.575e-05,2]
[336447850,1724831374758,154.91,9.58e-05,2]
[336447851,1724831374979,154.91,9.586e-05,2]
[336447852,1724831403907,403.04726312,9.899e-05,2]
[336447857,1724831431427,-300.0,9.999e-05,2]
[336447858,1724831431438,-0.75376989,9.999e-05,2]
[336447859,1724831431452,-154.24623011,9.999e-05,2]
[336447860,1724831431461,-206.00027189,0.0001,10]
[336447861,1724831431485,-793.99972811,0.0001,10]
[336447862,1724831431497,-182.09092873,0.0001,2]
[336447863,1724831431506,-1051.86058066,0.0001,2]
[336447864,1724831431515,-500.0,0.0001,2]
[336447865,1724831431526,-162.95327982,0.0001,2]
[336447866,1724831431536,-1000.0,0.0001,2]
[336447867,1724831431545,-3773.55,0.00010008,2]
[336447868,1724831431555,-317.10535159,0.00010009,2]
[336447869,1724831431564,-3749.23,0.00010018,2]
[336447870,1724831431573,-155.0,0.00010026,2]
[336447871,1724831431582,-3771.37,0.00010037,2]
[336447872,1724831431592,-3717.98,0.00010075,2]
[336447873,1724831431601,-150.0,0.00010082,2]
[336447874,1724831431610,-200.0,0.000101,3]
[336447875,1724831431620,-283.79,0.000101,2]
[336447876,1724831431629,-226.57,0.000101,2]
[336447877,1724831431638,-150.99,0.000101,2]
[336447878,1724831431648,-499.99,0.000101,2]
[336447879,1724831431657,-219.6,0.000101,2]
[336447880,1724831431667,-150.99,0.000101,2]
[336447881,1724831431676,-274.18,0.000101,2]
[336447882,1724831431685,-500.0,0.000102,3]
[336447883,1724831431695,-800.0,0.000103,3]
[336447884,1724831431705,-3694.13,0.00010375,2]
[336447885,1724831431714,-150.0,0.00010399,2]
[336447886,1724831431723,-1100.0,0.000104,3]
[336447887,1724831431733,-652.1,0.00010459,2]
[336447888,1724831431744,-1400.0,0.000105,3]
[336447889,1724831431754,-150.99,0.00010505,2]
[336447890,1724831431763,-2147.31496146,0.00010566,2]
[336447891,1724831431773,-3405.00874883,0.00010566,2]
[336447892,1724831431783,-72.03909175,0.000106,3]
[336447893,1724831431795,-127.96090825,0.000106,3]
[336447894,1724831431804,-381.31769537,0.00010602,2]
[336447895,1724831431813,-6716.90965046,0.0001069,2]
[336447896,1724831431826,-734.6075021,0.0001069,2]
[336447897,1724831431837,-903.92013879,0.0001069,2]
[336447899,1724831431849,-2693.57570865,0.0001069,2]
[336447901,1724831431858,-3786.0828,0.0001069,2]
[336447903,1724831431868,-963.71264311,0.00010699,2]
[336447905,1724831431877,-200.0,0.000107,3]
[336447907,1724831431887,-6968.51217838,0.0001078,2]
[336447909,1724831431927,-5241.03692162,0.0001078,2]
[336447910,1724831431936,-247.06014866,0.00010789,2]
[336447911,1724831431945,-3471.22182561,0.0001079,2]
[336447912,1724831431957,-836.89298034,0.0001079,2]
[336447914,1724831431968,-2300.0,0.0001079,2]
[336447916,1724831431989,-15563.84535004,0.0001079,2]
[336447937,1724831437567,-136125.45799998,0.0001079,2]
[336447939,1724831437579,-3259.45174403,0.0001079,2]
[336447941,1724831437588,-3047.3481,0.0001079,2]
[336447943,1724831437597,-266.35362782,0.00010799,2]
[336447946,1724831437607,-200.0,0.000108,3]
[336447948,1724831437617,-523.67279708,0.00010852,2]
[336447950,1724831437626,-547.58824289,0.00010861,2]
[336447952,1724831437635,-180.62442799,0.00010861,2]
[336447954,1724831437644,-1334.29983,0.0001089,2]
[336447956,1724831437653,-7500.0,0.00010898,2]
[336447958,1724831437663,-211.18287848,0.00010899,2]
[336447959,1724831437672,-200.0,0.000109,3]
[336447960,1724831437681,-352.01177964,0.000109,2]
[336447961,1724831437691,-161.40044995,0.000109,2]
[336447962,1724831437700,-500.0,0.00010912,2]
[336447963,1724831437710,-168.697,0.00010913,2]
[336447964,1724831437720,-900.0,0.00010942,2]
[336447965,1724831437730,-1000.0,0.00010942,2]
[336447966,1724831437740,-499.93707134,0.00010949,2]
[336447967,1724831437751,-153.338481,0.00010958,2]
[336447968,1724831437760,-150.781886,0.00010958,2]
[336447969,1724831437770,-152.153424,0.00010958,2]
[336447970,1724831437780,-152.153424,0.00010958,2]
[336447971,1724831437790,-152.153424,0.00010958,2]
[336447972,1724831437799,-152.153424,0.00010958,2]
[336447973,1724831437809,-157.199236,0.00010958,2]
[336447974,1724831437819,-157.534239,0.00010958,2]
[336447975,1724831437828,-238.864349,0.00010958,2]
[336447976,1724831437837,-238.864349,0.00010958,2]
[336447977,1724831437846,-238.864349,0.00010958,2]
[336447978,1724831437856,-238.864349,0.00010958,2]
[336447979,1724831437865,-238.864349,0.00010958,2]
[336447980,1724831437874,-154.356619,0.00010958,2]
[336447981,1724831437884,-154.356619,0.00010958,2]
[336447982,1724831437893,-155.589531,0.00010958,2]
[336447983,1724831437902,-155.589531,0.00010958,2]
[336447984,1724831437911,-152.899269,0.00010958,2]
[336447985,1724831437921,-191.57647,0.00010958,2]
[336447986,1724831437930,-191.57647,0.00010958,2]
[336447987,1724831437940,-191.57647,0.00010958,2]
[336447988,1724831437949,-191.57647,0.00010958,2]
[336447989,1724831437959,-191.57647,0.00010958,2]
[336447990,1724831437968,-156.452688,0.00010958,2]
[336447991,1724831437978,-156.452688,0.00010958,2]
[336447992,1724831437987,-156.452688,0.00010958,2]
[336447993,1724831437997,-156.452688,0.00010958,2]
[336447994,1724831438011,-156.040454,0.00010958,2]
[336447995,1724831438020,-156.040454,0.00010958,2]
[336447996,1724831438030,-156.040454,0.00010958,2]
[336447997,1724831438040,-156.040454,0.00010958,2]
[336447998,1724831438050,-248.9599496,0.00010958,2]
[336447999,1724831438059,-155.420654,0.00010958,2]
[336448000,1724831438069,-155.420654,0.00010958,2]
[336448001,1724831438079,-155.420654,0.00010958,2]
[336448002,1724831438089,-155.420654,0.00010958,2]
[336448003,1724831438098,-155.760387,0.00010958,2]
[336448004,1724831438107,-155.760387,0.00010958,2]
[336448005,1724831438117,-155.760387,0.00010958,2]
[336448006,1724831438126,-155.760387,0.00010958,2]
[336448007,1724831438136,-155.760387,0.00010958,2]
[336448008,1724831438145,-500.0,0.00010958,2]
[336448009,1724831438155,-500.0,0.00010958,2]
[336448010,1724831438165,-645.97,0.00010958,2]
[336448011,1724831438174,-645.97,0.00010958,2]
[336448012,1724831438184,-500.0,0.00010958,2]
[336448013,1724831438194,-500.0,0.00010958,2]
[336448014,1724831438203,-163.612407,0.00010958,2]
[336448015,1724831438212,-163.612407,0.00010958,2]
[336448016,1724831438222,-500.0,0.00010958,2]
[336448017,1724831438231,-619.91878598,0.00010958,2]
[336448018,1724831438240,-543.54003718,0.00010958,2]
[336448019,1724831438249,-500.0,0.00010958,2]
[336448020,1724831438263,-500.0,0.00010958,2]
[336448021,1724831438273,-452.04,0.00010958,2]
[336448022,1724831438283,-262.44054549,0.00010958,2]
[336448023,1724831438293,-230.28,0.00010958,2]
[336448024,1724831438302,-500.0,0.00010958,2]
[336448025,1724831438311,-500.0,0.00010958,2]
[336448026,1724831438320,-500.0,0.00010958,2]
[336448028,1724831438330,-504.81776242,0.00010958,2]
[336448030,1724831438339,-500.0,0.00010958,2]
[336448031,1724831438349,-500.0,0.00010958,2]
[336448032,1724831438358,-500.0,0.00010958,2]
[336448033,1724831438367,-500.0,0.00010958,2]
[336448034,1724831438377,-500.0,0.00010958,2]
[336448035,1724831438387,-500.0,0.00010958,2]
[336448036,1724831438396,-492.19122263,0.00010958,2]
[336448037,1724831438405,-296.28,0.00010958,2]
[336448038,1724831438415,-768.65,0.00010958,2]
[336448039,1724831438424,-768.65,0.00010958,2]
[336448040,1724831438433,-589.20451504,0.00010958,2]
[336448041,1724831438444,-500.0,0.00010958,2]
[336448042,1724831438457,-500.0,0.00010958,2]
[336448043,1724831438466,-500.0,0.00010958,2]
[336448044,1724831438476,-500.0,0.00010958,2]
[336448045,1724831438485,-500.0,0.00010958,2]
[336448046,1724831438494,-500.0,0.00010958,2]
[336448047,1724831438507,-500.0,0.00010958,2]
[336448048,1724831438517,-500.0,0.00010958,2]
[336448049,1724831438527,-500.0,0.00010958,2]
[336448050,1724831438536,-500.0,0.00010958,2]
[336448051,1724831438545,-343.03703186,0.00010958,2]
[336448052,1724831438555,-500.0,0.00010958,2]
[336448053,1724831438565,-500.0,0.00010958,2]
[336448054,1724831438575,-298.38828726,0.00010958,2]
[336448055,1724831438584,-508.61218446,0.00010958,2]
[336448056,1724831438594,-500.0,0.00010958,2]
[336448057,1724831438603,-486.66012195,0.00010958,2]
[336448058,1724831438612,-500.0,0.00010958,2]
[336448060,1724831438623,-278.27597218,0.00010958,2]
[336448061,1724831438632,-563.39807013,0.00010958,2]
[336448063,1724831438641,-336.44,0.00010958,2]
[336448065,1724831438652,-500.0,0.00010958,2]
[336448067,1724831438662,-258.43259293,0.00010958,2]
[336448069,1724831438671,-528.34269695,0.00010958,2]
[336448071,1724831438681,-500.0,0.00010958,2]
[336448073,1724831438690,-500.0,0.00010958,2]
[336448075,1724831438699,-614.95,0.00010958,2]
[336448077,1724831438708,-500.0,0.00010958,2]
[336448079,1724831438718,-500.0,0.00010958,2]
[336448081,1724831438728,-2231.83713972,0.00010958,2]
[336448083,1724831438747,-84.74286028,0.00010958,2]
[336448085,1724831438757,-500.0,0.00010958,2]
[336448086,1724831438767,-500.0,0.00010958,2]
[336448088,1724831438776,-500.0,0.00010958,2]
[336448090,1724831438786,-500.0,0.00010958,2]
[336448092,1724831438795,-440.91643838,0.00010958,2]
[336448094,1724831438806,-59.08356162,0.00010958,2]
[336448096,1724831438816,-500.0,0.00010958,2]
[336448098,1724831438826,-445.55619433,0.00010958,2]
[336448100,1724831438835,-500.0,0.00010958,2]
[336448102,1724831438844,-500.0,0.00010958,2]
[336448104,1724831438853,-160.77679114,0.00010958,2]
[336448106,1724831438863,-500.0,0.00010958,2]
[336448108,1724831438872,-500.0,0.00010958,2]
[336448109,1724831438882,-500.0,0.00010958,2]
[336448111,1724831438892,-500.0,0.00010958,2]
[336448113,1724831438901,-500.0,0.00010958,2]
[336448115,1724831438912,-500.0,0.00010958,2]
[336448117,1724831438921,-500.0,0.00010958,2]
[336448119,1724831438931,-500.0,0.00010958,2]
[336448121,1724831438940,-500.0,0.00010958,2]
[336448123,1724831438950,-500.0,0.00010958,2]
[336448124,1724831438959,-788.3,0.00010958,2]
[336448126,1724831438968,-500.0,0.00010958,2]
[336448127,1724831438978,-500.0,0.00010958,2]
[336448129,1724831438987,-500.0,0.00010958,2]
[336448131,1724831438996,-500.0,0.00010958,2]
[336448133,1724831439007,-586.98,0.00010958,2]
[336448134,1724831439016,-500.0,0.00010958,2]
[336448136,1724831439025,-500.0,0.00010958,2]
[336448138,1724831439035,-500.0,0.00010958,2]
[336448140,1724831439044,-502.50842172,0.00010958,2]
[336448142,1724831439054,-500.0,0.00010958,2]
[336448144,1724831439064,-500.0,0.00010958,2]
[336448146,1724831439074,-500.0,0.00010958,2]
[336448148,1724831439083,-500.0,0.00010958,2]